bitfinex/quotes_BTCUSD_20241002
["timestamp","ask_amount","ask_price","bid_price","bid_amount"]
[1727839895173,0.00164,61831.0,61830.0,0.29617145]
[1727839895687,0.00164,61831.0,61830.0,0.30317145]
[1727839895688,0.00264,61831.0,61830.0,0.30317145]
[1727839896875,0.00164,61831.0,61830.0,0.29617145]
[1727839897368,0.00264,61831.0,61830.0,0.30640544]
[1727839897850,0.00164,61831.0,61830.0,0.29940544]
[1727839898120,0.00264,61831.0,61830.0,0.30740544]
[1727839898372,0.00264,61831.0,61830.0,0.30940544]
[1727839898635,0.00264,61831.0,61830.0,0.30140544]
[1727839898636,0.00164,61831.0,61830.0,0.30140544]
[1727839898887,0.00264,61831.0,61830.0,0.31340544]
[1727839899383,0.00264,61831.0,61830.0,0.39250544]
[1727839899631,0.00264,61831.0,61830.0,0.38927145]
[1727839899873,0.00264,61831.0,61830.0,0.38727145]
[1727839903287,0.00164,61831.0,61830.0,0.37527145]
[1727839903510,0.00264,61831.0,61830.0,0.38727145]
[1727839903965,0.00164,61831.0,61830.0,0.37527145]
[1727839904401,0.00264,61831.0,61830.0,0.38727145]
[1727839905054,0.00164,61831.0,61830.0,0.37527145]
[1727839905506,0.00164,61831.0,61830.0,0.131477]
[1727839906388,0.02894814,61831.0,61830.0,0.01109]
[1727839907070,0.02794814,61831.0,61830.0,0.00209]
[1727839907284,0.00164,61831.0,61830.0,0.00209]
[1727839907506,0.131024,61831.0,61830.0,0.00209]
[1727839907732,0.37721845,61831.0,61830.0,0.00209]
[1727839907998,0.51871224,61831.0,61830.0,0.00209]
[1727839908924,0.08314,61831.0,61830.0,0.00209]
[1727839909137,0.212524,61831.0,61830.0,0.00209]
[1727839910210,0.09114,61831.0,61830.0,0.132477]
[1727839910643,0.09114,61831.0,61830.0,0.131477]
[1727839910644,0.08314,61831.0,61830.0,0.131477]
[1727839910873,0.08314,61831.0,61830.0,0.132477]
[1727839911089,0.09314,61831.0,61830.0,0.132477]
[1727839911523,0.08314,61831.0,61830.0,0.131477]
[1727839912419,0.08314,61831.0,61830.0,0.00209]
[1727839913291,0.09114,61831.0,61830.0,0.00309]
[1727839914853,0.09114,61831.0,61830.0,0.132477]
[1727839915276,0.09114,61831.0,61830.0,0.00309]
[1727839918812,0.09114,61831.0,61830.0,0.132477]
[1727839920320,0.09114,61831.0,61830.0,0.00309]
[1727839921049,0.09114,61831.0,61830.0,0.132477]
[1727839924272,0.09114,61831.0,61830.0,0.00309]
[1727839927784,0.09114,61831.0,61830.0,0.132477]
[1727839927998,0.00964,61831.0,61830.0,0.132477]
[1727839928864,0.00164,61831.0,61830.0,0.131477]
[1727839929320,0.00964,61831.0,61830.0,0.132477]
[1727839929739,0.00164,61831.0,61830.0,0.131477]
[1727839929976,0.00264,61831.0,61830.0,0.131477]
[1727839930629,0.00164,61831.0,61830.0,0.131477]
[1727839931917,0.00164,61831.0,61830.0,0.132477]
[1727839932524,0.00164,61831.0,61830.0,0.131477]
[1727839933425,0.00164,61831.0,61830.0,0.136477]
[1727839933852,0.00164,61831.0,61830.0,0.13971124]
[1727839934081,0.00164,61831.0,61830.0,0.38400569]
[1727839934338,0.00164,61831.0,61830.0,0.38077145]
[1727839935052,0.00164,61831.0,61830.0,0.37577145]
[1727839935270,0.00264,61831.0,61830.0,0.47317145]
[1727839939502,0.00264,61831.0,61830.0,0.38177145]
[1727839942806,0.00264,61831.0,61830.0,0.38377145]
[1727839944555,0.00264,61831.0,61830.0,0.38177145]
[1727839945233,0.00264,61831.0,61830.0,0.30217145]
[1727839945767,0.00264,61831.0,61830.0,0.47517145]
[1727839946033,0.00264,61831.0,61830.0,0.57517145]
[1727839946295,0.00264,61831.0,61830.0,0.61334841]
[1727839946296,1e-06,61831.0,61830.0,0.61334841]
[1727839946511,0.00164,61838.0,61837.0,0.402372]
[1727839946723,0.00164,61838.0,61837.0,0.73560786]
[1727839948493,0.00164,61838.0,61837.0,0.74760786]
[1727839948948,0.00164,61838.0,61837.0,0.75260786]
[1727839950022,0.00164,61838.0,61837.0,0.74060786]
[1727839950447,0.00164,61838.0,61837.0,0.75460786]
[1727839950658,0.00164,61838.0,61837.0,0.75868736]
[1727839950875,0.00164,61838.0,61837.0,0.74468736]
[1727839951307,0.00164,61838.0,61837.0,0.75868736]
[1727839951737,0.00164,61838.0,61837.0,0.74468736]
[1727839951974,0.00164,61838.0,61837.0,0.75868736]
[1727839952163,0.00164,61845.0,61844.0,0.57079841]
[1727839952404,0.00164,61845.0,61844.0,0.73549286]
[1727839954493,0.00164,61845.0,61844.0,0.74749286]
[1727839954939,0.00164,61845.0,61844.0,0.73549286]
[1727839955149,0.00164,61845.0,61844.0,0.74849286]
[1727839956491,0.00164,61845.0,61844.0,0.73549286]
[1727839956713,0.00164,61845.0,61844.0,0.74749286]
[1727839957372,0.00164,61845.0,61844.0,0.73549286]
[1727839957589,0.00164,61845.0,61844.0,0.74849286]
[1727839958016,0.00164,61845.0,61844.0,0.73549286]
[1727839958493,0.00164,61845.0,61844.0,0.74749286]
[1727839959144,0.00164,61845.0,61844.0,0.75161899]
[1727839959563,0.00164,61845.0,61844.0,0.73961899]
[1727839960065,0.00164,61845.0,61844.0,0.75361899]
[1727839960525,0.00164,61845.0,61844.0,0.73961899]
[1727839960759,0.00164,61845.0,61844.0,0.41117758]
[1727839963574,0.00164,61845.0,61844.0,0.43417758]
[1727839967158,0.00164,61845.0,61844.0,0.60271899]
[1727839969790,0.00164,61845.0,61844.0,0.58971899]
[1727839970000,0.00164,61845.0,61844.0,0.59171899]
[1727839970204,0.00164,61845.0,61844.0,0.60471899]
[1727839971277,0.00164,61845.0,61844.0,0.77891899]
[1727839971521,0.00164,61845.0,61844.0,0.76591899]
[1727839972234,0.00164,61845.0,61844.0,0.77891899]
[1727839972768,0.00164,61845.0,61844.0,0.76591899]
[1727839973018,0.00164,61845.0,61844.0,0.77991899]
[1727839976182,0.00164,61845.0,61844.0,0.78491899]
[1727839978345,0.00164,61845.0,61844.0,0.77091899]
[1727839978585,0.00164,61845.0,61844.0,0.78491899]
[1727839978821,0.00164,61845.0,61844.0,0.84029671]
[1727839979098,0.00164,61845.0,61844.0,0.82629671]
[1727839979555,0.00164,61845.0,61844.0,0.88856145]
[1727839979798,0.00164,61845.0,61844.0,0.84029671]
[1727839980337,0.00164,61845.0,61844.0,1.08070752]
[1727839980593,0.24296023,61856.0,61855.0,0.42087541]
[1727839980836,0.24296023,61856.0,61855.0,0.58756986]
[1727839981073,0.24296023,61864.0,61857.0,0.13133]
[1727839981304,0.24296023,61864.0,61857.0,0.42225718]
[1727839981511,0.24296023,61864.0,61857.0,0.41902445]
[1727839982449,0.1707,61870.0,61857.0,0.41902445]
[1727839982726,0.24296023,61863.0,61857.0,0.41702445]
[1727839983179,0.1707,61870.0,61857.0,0.41702445]
[1727839983649,0.1707,61870.0,61857.0,0.42302445]
[1727839984343,0.0931,61861.0,61857.0,0.42302445]
[1727839986966,0.0931,61861.0,61857.0,0.42723067]
[1727839990629,0.1707,61861.0,61857.0,0.42723067]
[1727839992200,0.17234,61858.0,61857.0,0.006]
[1727839992879,0.301668,61858.0,61857.0,0.006]
[1727839993145,0.1707,61855.0,61851.0,0.37230223]
[1727839993371,0.1707,61854.0,61851.0,0.24296023]
[1727839993594,0.0961,61852.0,61846.0,0.258706]
[1727839993828,0.1767,61850.0,61843.0,0.24296023]
[1727839994051,0.1767,61850.0,61847.0,0.129349]
[1727839994490,0.1767,61850.0,61828.0,0.1351934]
[1727839994705,0.0806,61849.0,61846.0,0.129352]
[1727839994924,0.0806,61849.0,61844.0,0.258714]
[1727839995365,0.0806,61849.0,61847.0,0.12935]
[1727839995853,0.210947,61849.0,61845.0,0.129354]
[1727839996089,0.0816,61849.0,61846.0,0.129352]
[1727839996321,0.0806,61849.0,61846.0,0.129352]
[1727839996545,0.0806,61849.0,61844.0,0.258714]
[1727839996772,0.0806,61849.0,61841.0,0.129363]
[1727839996773,0.209956,61845.0,61841.0,0.129363]
[1727839997002,0.0961,61844.0,61841.0,0.129363]
[1727839997234,0.0806,61843.0,61841.0,0.129363]
[1727839997672,0.129356,61845.0,61841.0,0.129363]
[1727839997673,0.1767,61842.0,61841.0,0.129363]
[1727839997898,0.258706,61847.0,61839.0,0.259554]
[1727839997899,0.129358,61844.0,61840.0,0.129365]
[1727839998359,0.1767,61842.0,61841.0,0.00082]
[1727839999032,0.306061,61842.0,61841.0,0.00082]
[1727839999245,0.1767,61842.0,61841.0,0.00082]
[1727840001415,0.1767,61842.0,61841.0,0.00182]
[1727840001416,0.1817,61842.0,61841.0,0.00182]
[1727840001658,0.1817,61842.0,61841.0,0.131184]
[1727840001883,0.1767,61842.0,61841.0,0.130184]
[1727840002097,0.1807,61842.0,61841.0,0.130184]
[1727840002974,0.1767,61842.0,61841.0,0.130184]
[1727840004095,0.1767,61846.0,61839.0,0.00082]
[1727840004313,0.129365,61841.0,61839.0,0.00082]
[1727840004558,0.225465,61841.0,61839.0,0.00082]
[1727840004768,0.209966,61840.0,61839.0,0.00082]
[1727840005631,0.0806,61840.0,61839.0,0.00082]
[1727840006512,0.0806,61840.0,61839.0,0.130188]
[1727840007136,0.0806,61840.0,61839.0,0.00082]
[1727840007416,0.0806,61840.0,61839.0,0.130188]
[1727840008307,0.0836,61840.0,61839.0,0.130188]
[1727840008729,0.0806,61840.0,61839.0,0.130188]
[1727840009619,0.0836,61840.0,61839.0,0.130188]
[1727840010086,0.0806,61840.0,61839.0,0.130188]
[1727840011317,0.0836,61840.0,61839.0,0.130188]
[1727840011568,0.0836,61840.0,61839.0,0.00082]
[1727840011838,0.209966,61840.0,61839.0,0.00082]
[1727840012060,0.212966,61840.0,61839.0,0.00082]
[1727840012306,0.0836,61840.0,61839.0,0.00082]
[1727840012566,0.209966,61840.0,61839.0,0.00082]
[1727840012816,0.309166,61840.0,61839.0,0.00082]
[1727840013769,0.1798,61840.0,61839.0,0.00082]
[1727840014757,0.1768,61840.0,61839.0,0.00082]
[1727840015013,0.306166,61840.0,61839.0,0.00082]
[1727840015254,0.309166,61840.0,61839.0,0.00082]
[1727840015511,0.1768,61840.0,61839.0,0.00082]
[1727840015996,0.1798,61840.0,61839.0,0.00082]
[1727840016428,0.1798,61840.0,61839.0,0.130188]
[1727840017783,0.1768,61840.0,61839.0,0.130188]
[1727840018048,0.1798,61840.0,61839.0,0.130188]
[1727840018918,0.0836,61840.0,61839.0,0.130188]
[1727840019127,0.0806,61840.0,61839.0,0.130188]
[1727840019543,0.0836,61840.0,61839.0,0.130188]
[1727840020860,0.00164,61845.0,61844.0,0.129357]
[1727840022185,0.08324,61845.0,61842.0,0.12936]
[1727840022494,0.08324,61845.0,61843.0,0.129359]
[1727840022927,0.08324,61845.0,61844.0,0.002]
[1727840023354,0.17944,61845.0,61844.0,0.002]
[1727840024042,0.17944,61845.0,61841.0,0.258727]
[1727840024271,0.17944,61845.0,61842.0,0.12936]
[1727840024504,0.17944,61845.0,61842.0,0.129361]
[1727840024505,0.18244,61845.0,61842.0,0.129361]
[1727840024718,0.18244,61845.0,61839.0,0.00082]
[1727840024719,0.18244,61845.0,61843.0,0.129359]
[1727840024933,0.17944,61845.0,61843.0,0.129359]
[1727840025370,0.18244,61845.0,61844.0,0.129357]
[1727840025582,0.18244,61845.0,61843.0,0.129359]
[1727840026015,0.17944,61845.0,61843.0,0.129359]
[1727840027123,0.18244,61845.0,61843.0,0.129359]
[1727840027780,0.18244,61845.0,61844.0,0.129357]
[1727840027992,0.18244,61845.0,61842.0,0.388083]
[1727840028440,0.18244,61845.0,61840.0,0.258731]
[1727840028635,0.17944,61845.0,61841.0,0.129363]
[1727840028877,0.06811042,61844.0,61841.0,0.129363]
[1727840029092,0.06811042,61844.0,61840.0,0.258731]
[1727840029308,0.19746842,61844.0,61841.0,0.129363]
[1727840029528,0.06811042,61844.0,61839.0,0.00082]
[1727840029756,0.06811042,61844.0,61842.0,0.129361]
[1727840029971,0.18244,61845.0,61842.0,0.129361]
[1727840030252,0.18244,61845.0,61841.0,0.258725]
[1727840030469,0.17944,61845.0,61843.0,0.129359]
[1727840030681,0.18244,61845.0,61843.0,0.129359]
[1727840030897,0.18244,61845.0,61841.0,0.258725]
[1727840031127,0.18244,61845.0,61843.0,0.129358]
[1727840031339,0.17944,61845.0,61843.0,0.129358]
[1727840031749,0.18244,61845.0,61843.0,0.129358]
[1727840032655,0.311796,61845.0,61841.0,0.129363]
[1727840032907,0.311796,61845.0,61841.0,0.25872493]
[1727840032908,0.00464,61845.0,61841.0,0.25872493]
[1727840033170,0.00464,61845.0,61842.0,0.12936]
[1727840033403,0.00464,61845.0,61843.0,0.129358]
[1727840033642,0.00164,61845.0,61843.0,0.129358]
[1727840034035,0.00464,61845.0,61844.0,0.129357]
[1727840034652,0.00164,61845.0,61844.0,0.129357]
[1727840034865,0.00464,61845.0,61844.0,0.129357]
[1727840035433,0.00164,61845.0,61844.0,0.129357]
[1727840040266,0.05016556,61845.0,61844.0,0.129357]
[1727840040488,0.00164,61845.0,61844.0,0.129357]
[1727840042296,0.05016556,61845.0,61844.0,0.129357]
[1727840043185,0.00164,61845.0,61844.0,0.129357]
[1727840043859,0.00164,61845.0,61844.0,0.132357]
[1727840044721,0.00164,61845.0,61844.0,0.129357]
[1727840044939,0.00164,61845.0,61844.0,0.135357]
[1727840047245,0.00164,61845.0,61844.0,0.497182]
[1727840047470,0.00164,61845.0,61844.0,0.597182]
[1727840047699,0.00164,61845.0,61844.0,0.62562095]
[1727840048161,0.00164,61845.0,61844.0,0.86143849]
[1727840048382,0.00164,61845.0,61844.0,0.62462095]
[1727840048591,0.24296023,61857.0,61856.0,0.41918022]
[1727840048808,0.24296023,61857.0,61856.0,0.60170522]
[1727840049231,0.00164,61858.0,61856.0,0.60170522]
[1727840049232,0.00164,61858.0,61857.0,0.12933]
[1727840049463,0.00164,61858.0,61857.0,0.29402445]
[1727840049675,0.00164,61858.0,61857.0,0.46232546]
[1727840050564,0.00164,61858.0,61857.0,0.98458569]
[1727840050775,0.00164,61858.0,61857.0,0.77445601]
[1727840051225,0.00164,61866.0,61865.0,0.229313]
[1727840051442,0.00164,61866.0,61865.0,0.64594059]
[1727840051660,0.00164,61866.0,61865.0,0.74360846]
[1727840053725,0.00164,61866.0,61865.0,0.75660846]
[1727840057730,0.00164,61866.0,61865.0,0.40700745]
[1727840057947,0.00164,61866.0,61865.0,0.242313]
[1727840058185,0.00164,61866.0,61865.0,0.142313]
[1727840058827,0.00164,61866.0,61865.0,0.013]
[1727840059037,0.00164,61866.0,61865.0,0.142313]
[1727840059256,0.00164,61866.0,61865.0,0.013]
[1727840059486,0.00164,61866.0,61865.0,0.142313]
[1727840059698,0.00164,61866.0,61865.0,0.129313]
[1727840063499,0.00164,61866.0,61865.0,0.130313]
[1727840065838,0.00164,61866.0,61865.0,0.001]
[1727840066087,0.212851,61866.0,61865.0,0.001]
[1727840066340,0.129318,61863.0,61858.0,0.00082]
[1727840066583,0.129318,61863.0,61859.0,0.129325]
[1727840066834,0.353929,61865.0,61858.0,0.00082]
[1727840066835,0.129323,61861.0,61858.0,0.00082]
[1727840067071,0.129319,61863.0,61859.0,0.129326]
[1727840067548,0.224614,61865.0,61861.0,0.129321]
[1727840067783,0.0953,61865.0,61859.0,0.258652]
[1727840068023,0.224614,61865.0,61861.0,0.129321]
[1727840068221,0.001,61863.0,61861.0,0.129321]
[1727840068431,0.001,61863.0,61858.0,0.259476]
[1727840069120,0.001,61863.0,61860.0,0.129323]
[1727840069611,0.0953,61865.0,61861.0,0.12932]
[1727840069612,0.224615,61865.0,61861.0,0.12932]
[1727840069838,0.0963,61865.0,61862.0,0.129318]
[1727840070113,0.0963,61865.0,61864.0,0.129315]
[1727840070382,0.001,61865.0,61864.0,0.129315]
[1727840070879,0.00164,61866.0,61865.0,0.129313]
[1727840072441,0.00164,61866.0,61858.0,0.24378023]
[1727840072442,0.130952,61866.0,61858.0,0.24378023]
[1727840072672,0.130952,61866.0,61860.0,0.129322]
[1727840072673,0.129316,61864.0,61860.0,0.129322]
[1727840072920,0.129316,61864.0,61858.0,0.24378023]
[1727840072921,0.24920101,61865.0,61858.0,0.24378023]
[1727840073174,0.24920101,61865.0,61861.0,0.129321]
[1727840073461,0.0809,61865.0,61864.0,0.002]
[1727840073920,0.210214,61865.0,61861.0,0.129321]
[1727840074168,0.211214,61865.0,61861.0,0.129321]
[1727840074658,0.129317,61864.0,61859.0,0.129325]
[1727840075181,0.129317,61864.0,61860.0,0.129324]
[1727840075681,0.340528,61865.0,61862.0,0.129319]
[1727840075682,0.0819,61865.0,61862.0,0.129319]
[1727840076390,0.0809,61865.0,61862.0,0.129319]
[1727840076867,0.0819,61865.0,61862.0,0.129319]
[1727840077080,0.0809,61865.0,61862.0,0.129319]
[1727840077553,0.0819,61865.0,61862.0,0.129319]
[1727840079926,0.0819,61865.0,61862.0,0.25864]
[1727840080150,0.0819,61865.0,61864.0,0.129315]
[1727840080151,0.001,61865.0,61864.0,0.129315]
[1727840080801,0.00164,61866.0,61865.0,0.129313]
[1727840083516,0.00164,61866.0,61865.0,0.131313]
[1727840085363,0.00164,61866.0,61865.0,0.129313]
[1727840085682,0.00264,61866.0,61865.0,0.129313]
[1727840086442,0.00164,61866.0,61865.0,0.129313]
[1727840089630,0.00164,61866.0,61865.0,0.13254575]
[1727840089791,0.00164,61866.0,61865.0,0.129313]
[1727840089991,0.00164,61866.0,61865.0,0.130313]
[1727840090404,0.00164,61866.0,61865.0,0.129313]
[1727840091001,0.00164,61866.0,61865.0,0.31104553]
[1727840091224,0.00164,61866.0,61865.0,0.307813]
[1727840093112,0.00164,61866.0,61865.0,0.231713]
[1727840094611,0.00164,61866.0,61865.0,0.134313]
[1727840097102,0.00164,61866.0,61865.0,0.129313]
[1727840098581,0.00164,61866.0,61865.0,0.132313]
[1727840099044,0.00164,61866.0,61865.0,0.129313]
[1727840099485,0.00164,61866.0,61865.0,0.132313]
[1727840100878,0.130951,61866.0,61865.0,0.003]
[1727840101098,0.226351,61866.0,61865.0,0.003]
[1727840101544,0.00164,61866.0,61865.0,0.132313]
[1727840101760,0.00164,61866.0,61865.0,0.129313]
[1727840102464,0.00164,61866.0,61865.0,0.130313]
[1727840102933,0.00164,61866.0,61865.0,0.129313]
[1727840103414,0.00164,61866.0,61865.0,0.132313]
[1727840104733,0.00164,61866.0,61865.0,0.129313]
[1727840105375,0.00164,61866.0,61865.0,0.132313]
[1727840105844,0.00164,61866.0,61865.0,0.129313]
[1727840106091,0.00164,61866.0,61865.0,0.134313]
[1727840107903,0.00164,61866.0,61865.0,0.005]
[1727840108208,0.23584,61866.0,61865.0,0.005]
[1727840108417,0.25813868,61866.0,61865.0,0.005]
[1727840108665,0.08034,61866.0,61858.0,0.00082]
[1727840108904,0.04848718,61864.0,61858.0,0.00082]
[1727840109140,0.04848718,61864.0,61861.0,0.129322]
[1727840110028,0.04848718,61863.0,61861.0,0.129322]
[1727840110465,0.04848718,61864.0,61861.0,0.129322]
[1727840110683,0.04848718,61864.0,61862.0,0.129319]
[1727840111326,0.04948718,61864.0,61862.0,0.129319]
[1727840111820,0.258641,61862.0,61858.0,0.00082]
[1727840112049,0.129324,61860.0,61858.0,0.00082]
[1727840112274,0.04847073,61860.0,61858.0,0.00082]
[1727840112506,0.47541415,61861.0,61858.0,0.00082]
[1727840112739,0.129326,61859.0,61858.0,0.00082]
[1727840113212,0.47541415,61861.0,61858.0,0.00082]
[1727840113213,0.129324,61860.0,61858.0,0.00082]
[1727840113928,0.34608915,61861.0,61858.0,0.00082]
[1727840114143,0.04846614,61861.0,61858.0,0.130147]
[1727840114358,0.04846614,61860.0,61859.0,0.129326]
[1727840114580,0.04846614,61860.0,61858.0,0.00082]
[1727840115006,0.129326,61859.0,61858.0,0.00082]
[1727840116350,0.04846614,61860.0,61858.0,0.00082]
[1727840116582,0.129326,61859.0,61858.0,0.00082]
[1727840116815,0.56352566,61859.0,61858.0,0.00082]
[1727840117039,0.77485476,61859.0,61858.0,0.00082]
[1727840117283,0.77460464,61859.0,61858.0,0.00082]
[1727840117952,0.77360464,61859.0,61858.0,0.00082]
[1727840118166,0.65247688,61859.0,61858.0,0.00082]
[1727840118410,0.77355057,61859.0,61858.0,0.00082]
[1727840118630,0.77326386,61859.0,61858.0,0.00082]
[1727840119067,0.75005012,61859.0,61858.0,0.00082]
[1727840119563,0.40993011,61859.0,61858.0,0.00082]
[1727840119801,0.4239452,61859.0,61858.0,0.00082]
[1727840121065,0.37552045,61859.0,61858.0,0.00082]
[1727840121716,0.0815,61859.0,61858.0,0.00082]
[1727840122136,0.001,61859.0,61858.0,0.130148]
[1727840123654,0.001,61859.0,61858.0,0.30628436]
[1727840126450,0.001,61859.0,61858.0,0.17695636]
[1727840127307,0.001,61859.0,61858.0,0.30628436]
[1727840127736,0.001,61859.0,61858.0,0.17695636]
[1727840128640,0.001,61859.0,61858.0,0.00082]
[1727840132113,0.00264,61859.0,61858.0,0.00082]
[1727840134774,0.131966,61859.0,61858.0,0.00082]
[1727840137028,0.131966,61859.0,61858.0,0.130148]
[1727840137029,0.00264,61859.0,61858.0,0.130148]
[1727840137913,0.00964,61859.0,61858.0,0.131148]
[1727840151398,0.00964,61859.0,61858.0,0.30728436]
[1727840152483,0.00964,61859.0,61858.0,0.39728436]
[1727840152484,0.00864,61859.0,61858.0,0.39728436]
[1727840152716,0.00164,61859.0,61858.0,0.39928436]
[1727840152929,0.00164,61859.0,61858.0,0.41695511]
[1727840153352,0.00164,61859.0,61858.0,0.41395511]
[1727840153836,0.00164,61859.0,61858.0,0.41394032]
[1727840154062,0.00164,61859.0,61858.0,0.67863477]
[1727840154274,0.00164,61859.0,61858.0,0.76063477]
[1727840154525,0.00164,61859.0,61858.0,0.76163477]
[1727840154739,0.00164,61859.0,61858.0,0.76063477]
[1727840155158,0.00164,61859.0,61858.0,0.77363477]
[1727840155159,0.00264,61859.0,61858.0,0.77363477]
[1727840155590,0.00264,61859.0,61858.0,0.76763477]
[1727840156012,0.00264,61859.0,61858.0,0.77963477]
[1727840159321,0.00264,61859.0,61858.0,0.76197881]
[1727840159757,0.00264,61859.0,61858.0,0.77963477]
[1727840159964,0.00264,61859.0,61858.0,0.76197881]
[1727840160168,0.00264,61859.0,61858.0,0.77963477]
[1727840160390,0.00264,61859.0,61858.0,0.76197881]
[1727840160596,0.00264,61859.0,61858.0,0.77963477]
[1727840160807,0.00264,61859.0,61858.0,0.76197881]
[1727840161013,0.00264,61859.0,61858.0,0.77963477]
[1727840161226,0.00264,61859.0,61858.0,0.76197881]
[1727840164733,0.00264,61859.0,61858.0,0.42528436]
[1727840165430,0.17314,61859.0,61858.0,0.32528436]
[1727840165912,0.17314,61859.0,61858.0,0.19595636]
[1727840165913,0.302466,61859.0,61858.0,0.19595636]
[1727840166140,0.302466,61859.0,61858.0,0.18395636]
[1727840166584,0.17314,61859.0,61858.0,0.18395636]
[1727840166797,0.17414,61859.0,61858.0,0.18395636]
[1727840167211,0.17314,61859.0,61858.0,0.30628436]
[1727840167418,0.18014,61859.0,61858.0,0.17795636]
[1727840167629,0.18014,61859.0,61858.0,0.30728436]
[1727840167841,0.18014,61859.0,61858.0,0.17795636]
[1727840168075,0.08694,61859.0,61858.0,0.30728436]
[1727840171106,0.08694,61859.0,61858.0,0.17795636]
[1727840172250,0.00964,61859.0,61858.0,0.30728436]
[1727840172897,0.00964,61859.0,61858.0,0.47558537]
[1727840173348,0.00964,61859.0,61858.0,0.64027982]
[1727840173780,0.00264,61859.0,61858.0,0.72957982]
[1727840174418,0.00264,61859.0,61858.0,0.73457982]
[1727840174650,0.00264,61859.0,61858.0,0.81547982]
[1727840174855,0.00264,61859.0,61858.0,0.91047982]
[1727840175081,0.00264,61859.0,61858.0,0.92955568]
[1727840175505,0.00164,61859.0,61858.0,0.92455568]
[1727840175739,0.00164,61859.0,61858.0,0.91455568]
[1727840175951,0.00164,61859.0,61858.0,0.92555568]
[1727840176395,0.00164,61859.0,61858.0,0.92755568]
[1727840176860,0.00164,61859.0,61858.0,0.93155568]
[1727840177083,0.00164,61859.0,61858.0,0.92755568]
[1727840177336,0.00164,61859.0,61858.0,0.91655568]
[1727840177572,0.00264,61859.0,61858.0,0.93455568]
[1727840183352,0.00264,61859.0,61858.0,0.76625467]
[1727840183570,0.00264,61859.0,61858.0,0.59505467]
[1727840184832,0.00264,61859.0,61858.0,0.76335568]
[1727840185652,0.00264,61859.0,61858.0,0.93455568]
[1727840187546,0.00264,61859.0,61858.0,0.93655568]
[1727840188918,0.00264,61859.0,61858.0,0.93455568]
[1727840191376,0.00264,61859.0,61858.0,0.68535467]
[1727840191837,0.00264,61859.0,61858.0,0.59505467]
[1727840200021,0.00264,61859.0,61858.0,0.77305467]
[1727840200222,0.00264,61859.0,61858.0,0.8016259]
[1727840200844,0.00264,61859.0,61858.0,0.8036259]
[1727840201709,0.00264,61859.0,61858.0,0.8016259]
[1727840202266,0.00264,61859.0,61858.0,0.77305467]
[1727840202906,0.00264,61859.0,61858.0,0.80167877]
[1727840203337,0.00264,61859.0,61858.0,0.80367877]
[1727840205984,0.00264,61859.0,61858.0,0.80367514]
[1727840207959,0.00264,61859.0,61858.0,0.79167514]
[1727840208362,0.00164,61859.0,61858.0,0.79567514]
[1727840208582,0.00264,61859.0,61858.0,0.80967514]
[1727840208796,0.00264,61859.0,61858.0,0.79767514]
[1727840209212,0.00264,61859.0,61858.0,0.81167514]
[1727840211156,0.00264,61859.0,61858.0,0.63167514]
[1727840212272,0.00264,61859.0,61858.0,0.60305467]
[1727840212695,0.00264,61859.0,61858.0,0.33428436]
[1727840214018,0.00164,61859.0,61858.0,0.32028436]
[1727840214256,0.00164,61859.0,61858.0,0.30928436]
[1727840214477,0.00164,61859.0,61858.0,0.31228436]
[1727840214888,0.00164,61859.0,61858.0,0.30928436]
[1727840215314,0.00164,61859.0,61858.0,0.31728436]
[1727840215578,0.00164,61859.0,61858.0,0.32139233]
[1727840216674,0.00164,61859.0,61858.0,0.31728436]
[1727840221476,0.00164,61859.0,61858.0,0.48197881]
[1727840222857,0.00054258,61866.0,61865.0,0.129313]
[1727840224534,0.00454258,61866.0,61865.0,0.129313]
[1727840225102,0.00454258,61866.0,61865.0,0.131313]
[1727840229108,0.00454258,61866.0,61865.0,0.29600745]
[1727840232646,0.00454258,61866.0,61865.0,0.47181976]
[1727840232845,0.00454258,61866.0,61865.0,0.46858728]
[1727840233772,0.04,61875.0,61868.0,0.0781]
[1727840233984,0.04,61875.0,61874.0,0.79147808]
[1727840234148,0.00164,61880.0,61879.0,0.39758501]
[1727840234345,0.00164,61880.0,61879.0,0.6107166]
[1727840234518,0.00164,61880.0,61879.0,0.56227946]
[1727840235941,0.00164,61880.0,61879.0,0.57627946]
[1727840236174,0.001642,61894.0,61879.0,0.57627946]
[1727840236175,0.00164,61893.0,61890.0,0.306961]
[1727840236370,0.00164,61893.0,61890.0,0.74818729]
[1727840236596,0.00164,61893.0,61890.0,0.74495646]
[1727840237448,0.00164,61893.0,61890.0,0.75895646]
[1727840237652,0.00264,61891.0,61890.0,0.75895646]
[1727840237857,0.00264,61891.0,61890.0,0.74495646]
[1727840238270,0.00364,61891.0,61890.0,0.77295646]
[1727840241280,0.00364,61891.0,61890.0,0.8212906]
[1727840242347,0.00364,61891.0,61890.0,0.82543465]
[1727840243195,0.00364,61891.0,61890.0,0.77710051]
[1727840245864,0.00364,61891.0,61890.0,0.78357451]
[1727840249550,0.00164,61891.0,61890.0,0.76957451]
[1727840249762,0.00264,61891.0,61890.0,0.78357451]
[1727840249968,0.00264,61891.0,61890.0,0.76957451]
[1727840250399,0.00264,61891.0,61890.0,0.78357451]
[1727840251012,0.00264,61891.0,61890.0,0.76957451]
[1727840251218,0.00264,61891.0,61890.0,0.78357451]
[1727840252666,0.00164,61891.0,61890.0,0.76957451]
[1727840252888,0.00264,61891.0,61890.0,0.78357451]
[1727840254458,0.00264,61891.0,61890.0,0.76957451]
[1727840254897,0.00264,61891.0,61890.0,0.78357451]
[1727840255135,0.001642,61894.0,61890.0,0.78357451]
[1727840255136,1e-06,61894.0,61893.0,0.136255]
[1727840255360,1e-06,61894.0,61893.0,0.49384945]
[1727840255585,1e-06,61894.0,61893.0,0.58664471]
[1727840255801,1e-06,61894.0,61893.0,0.49384945]